Cogmind - Beta 13 @@@ ROGUE MODE // 2024.05.25 @ 08:51:45 Player: Dosh Result: Destroyed by S-27 Virus with Autogun Performance ------------- Evolutions (3) 1500 Regions Visited (14) 2800 Robots Destroyed (224) 1120 Value Destroyed (6343) 6343 Prototype IDs (38) 760 Alien Tech Used (0) 0 Bonus (1167) 1167 TOTAL SCORE: 13690 Bonus ------- High Alert Combat Kills 473 Follower Combat Kills 33 Entered Garrisons 400 Aligned with FarCom 300 Friendly Fire -39 Cogmind --------- Core Integrity 0/700 Matter 263/300 Energy 98/100 System Corruption 21% Temperature Cool (0) Movement Core (50) Location -7/Factory Parts ------- > --- POWER (1) -------- (None) > --- PROPULSION (2) --- (None) > --- UTILITY (6) ------ Core Analyzer System Shield > --- WEAPON (4) ------- (None) > --- INVENTORY (5) ---- Improved Deuterium Engine Peak State ------------ > --- POWER ------------ Antimatter Reactor > --- PROPULSION ------- Potential Leg Potential Leg > --- UTILITY ---------- Coolant Injector Huge Storage Unit Core Analyzer Weapon Cycler Advanced Shield Generator Hacking Suite > --- WEAPON ----------- Enhanced Autogun Enhanced Autogun Enhanced Autogun Enhanced Autogun > --- INVENTORY -------- Improved Deuterium Engine Improved Deuterium Engine Heavy Treads Heavy Treads Experimental Sensor Array Kinecellerator Improved Transmission Jammer Medium Reactive Plating Medium Reactive Plating Medium Reactive Plating Medium Reactive Plating Medium Reactive Plating Advanced Shield Generator Remote Shield System Shield Component Analysis Suite System Restoration Module Long-range Tractor Beam Enhanced Autogun Enhanced Autogun Heavy Flak Cannon Heavy Missile Launcher Heavy Flail [Rating: 76] Favorites ----------- Power Heavy Ion Engine Engine Heavy Ion Engine Power Core Micro Nuclear Core Reactor Antimatter Reactor Propulsion Potential Leg Treads Light Treads Leg Potential Leg Utility Medium Reactive Plating Device Improved Cooling System Storage Huge Storage Unit Processor Core Analyzer Hackware Hacking Suite Protection Medium Reactive Plating Weapon Enhanced Autogun Energy Gun Heavy EM Shotgun Ballistic Gun Enhanced Autogun Ballistic Cannon Improved Light Cannon Launcher Heavy Rocket Launcher Impact Weapon Heavy Flail Build | -11 -10 -10 -9 -9 -9 -8 -8 -8 -8 -8 -8 -7 -7 -7 ------- Run | Yrd Mat Min Mat Min Exi Min Mat Gar Mat Gar Mat Fac Was Fac Slots Evolved 6 | . . . 2 . . . 2 . . . . 2 . . Power . | . . . . . . . . . . . . . . . Propulsion . | . . . . . . . . . . . . . . . Utility 4 | . . . 2 . . . 2 . . . . . . . Weapon 2 | . . . . . . . . . . . . 2 . . Parts Attached 152 | 6 9 2 35 6 2 2 20 6 10 23 5 18 4 4 Power 10 | 1 1 . 3 . . . 2 . 1 . . 1 1 . Engine 8 | 1 1 . 3 . . . 2 . . . . 1 . . Core 1 | . . . . . . . . . 1 . . . . . Reactor 1 | . . . . . . . . . . . . . 1 . Propulsion 19 | 2 1 . 11 . 2 . . . . . . . 1 2 Treads 17 | 2 1 . 11 . . . . . . . . . 1 2 Leg 2 | . . . . . 2 . . . . . . . . . Wheel . | . . . . . . . . . . . . . . . Hover . | . . . . . . . . . . . . . . . Flight . | . . . . . . . . . . . . . . . Utility 59 | 1 4 . 8 6 . . 10 . 3 9 5 10 1 2 Device 26 | . 1 . 1 2 . . 4 . . 8 3 6 1 . Storage 5 | 1 2 . . 1 . . . . . . . 1 . . Processor 2 | . . . . . . . . . 1 . . . . 1 Hackware 3 | . . . 1 . . . . . . . 1 . . 1 Protection 23 | . 1 . 6 3 . . 6 . 2 1 1 3 . . Artifact . | . . . . . . . . . . . . . . . Weapon 64 | 2 3 2 13 . . 2 8 6 6 14 . 7 1 . Energy Gun 3 | 1 . . 2 . . . . . . . . . . . Energy Cannon . | . . . . . . . . . . . . . . . Ballistic Gun 38 | 1 2 1 7 . . 2 7 2 3 6 . 6 1 . Ballistic Cannon 3 | . 1 . 1 . . . . . . 1 . . . . Launcher 9 | . . 1 3 . . . . 1 1 3 . . . . Special Weapon . | . . . . . . . . . . . . . . . Impact Weapon 11 | . . . . . . . 1 3 2 4 . 1 . . Slashing Weapon . | . . . . . . . . . . . . . . . Piercing Weapon . | . . . . . . . . . . . . . . . Special Melee Weapon . | . . . . . . . . . . . . . . . Unidentified Prototypes 4 | . . . . 2 . . 2 . . . . . . . Parts Lost 18 | . 2 . 4 . . . 2 1 1 2 . . 5 1 Power 1 | . . . 1 . . . . . . . . . . . Propulsion 3 | . . . . . . . . . . . . . 2 1 Utility 12 | . 1 . 2 . . . 2 1 1 2 . . 3 . Weapon 2 | . 1 . 1 . . . . . . . . . . . Highest Loss Streak 5 | . 1 . 2 . . . 1 1 1 1 . . 5 1 To Critical Strikes . | . . . . . . . . . . . . . . . Average Slot Usage (%) 91 | . 94 100 98 99 77 100 90 89 86 97 97 99 33 19 Engine 7 | . 14 14 11 11 11 11 9 9 6 . . 6 1 . Core 1 | . . . . . . . . . 2 9 9 . . . Treads 8 | . 28 28 21 22 14 . . . . . . . . 6 Leg 10 | . . . . . 7 22 18 18 18 18 18 15 5 . Device 12 | . 1 . 4 . . . 23 26 11 16 16 15 7 . Storage 9 | . 14 14 11 11 11 11 9 9 9 9 9 7 2 . Processor 2 | . . . . . . . . . 5 9 9 7 2 5 Hackware 4 | . . . 8 11 11 11 1 . . . 8 7 2 5 Protection 12 | . 7 14 19 20 22 22 10 9 14 17 8 6 . . Ballistic Gun 16 | . 25 14 13 11 . 22 17 12 17 12 18 29 9 . Ballistic Cannon 1 | . . . 4 11 . . . . . . . . . . Naked Turns 163 | . . . . . . . . . . . . . 163 . Heaviest Build 143 | 13 29 28 45 105 98 104 131 128 136 143 123 128 115 . Greatest Support 60 | 40 40 40 43 40 60 60 60 60 60 60 60 60 60 3 Greatest Overweight (x) 3 | . . . 1 2 3 1 2 2 2 2 2 2 1 . Average Overweight (x) 1 | . . . . 1 1 1 1 2 2 1 1 1 . . Largest Inventory Capacity 25 | 8 15 15 15 25 25 25 25 25 25 25 25 25 25 5 Average Capacity 21 | 6 10 15 15 21 25 25 25 25 25 25 25 25 11 5 Most Carried 25 | 1 9 10 15 23 25 24 25 23 24 24 22 25 25 3 Average Carried 19 | . 5 9 14 18 24 23 24 23 21 22 21 21 11 1 Final Capacity 25 | 8 15 15 15 25 25 25 25 25 25 25 25 25 5 5 Final Carried 25 | 1 9 10 14 23 25 23 23 23 21 23 22 25 3 1 Class Distribution -------------------- 76% | Mutant 12% | Tank 8% | Scavenger-Mutant Dominant Class ---------------- Mutant | -10/Materials Mutant | -10/Mines Mutant | -9/Materials Mutant | -9/Mines Mutant | -9/Exiles Scavenger-Mutant | -8/Mines Mutant | -8/Materials Mutant | -8/Garrison Mutant | -8/Materials Mutant | -8/Garrison Mutant | -8/Materials Tank | -7/Factory Mutant | -7/Waste Mutant | -7/Factory Resources | -11 -10 -10 -9 -9 -9 -8 -8 -8 -8 -8 -8 -7 -7 -7 ----------- Run | Yrd Mat Min Mat Min Exi Min Mat Gar Mat Gar Mat Fac Was Fac Matter Collected 7249 | 243 330 108 1260 238 . 50 1036 122 558 1212 . 1610 309 173 Remotely 650 | . . . . . . . . . . 448 . 202 . . Salvage Created 8225 | . 603 221 1761 139 . 50 1399 69 711 901 . 1813 558 . Parts 499 | . 47 14 115 10 . 3 76 6 42 58 . 118 10 . Haulers Intercepted 19 | . 1 . 5 . . . 6 . 3 . . 4 . . Recyclers Shooed 4 | . 1 1 . . . . . . . . . 1 . 1 Parts Field Recycled . | . . . . . . . . . . . . . . . Retrieved Matter . | . . . . . . . . . . . . . . . Parts Self-Destructed . | . . . . . . . . . . . . . . . Prevented . | . . . . . . . . . . . . . . . Kills | -11 -10 -10 -9 -9 -9 -8 -8 -8 -8 -8 -8 -7 -7 -7 ------- Run | Yrd Mat Min Mat Min Exi Min Mat Gar Mat Gar Mat Fac Was Fac Combat Hostiles Destroyed 164 | . 14 11 35 6 . 1 21 4 16 27 . 27 2 . Guns 114 | . 14 . 23 4 . 1 21 1 11 10 . 27 2 . Cannons 5 | . . . 3 2 . . . . . . . . . . AOE 45 | . . 11 9 . . . . 3 5 17 . . . . Classes Destroyed 20 | . 6 1 5 . . 1 2 . . 1 . 3 1 . Worker 8 | . . . 3 . . . 1 . . . . 4 . . Builder 5 | . 1 1 2 . . . . . . . . 1 . . Tunneler 3 | . . . . . . . 2 . . . . 1 . . Hauler 19 | . 1 . 5 . . . 6 . 3 . . 4 . . Recycler 8 | . 1 2 2 . . . 1 . . . . 2 . . Mechanic 1 | . . . 1 . . . . . . . . . . . Operator 6 | . . . 3 . . . . . 1 . . 2 . . Watcher 14 | . 1 . 4 . . . 3 . 3 2 . 1 . . Swarmer 53 | . 3 3 11 4 . . 6 3 7 10 . 6 . . Grunt 59 | . 11 4 16 2 . . 7 . 8 5 . 6 . . Brawler 2 | . . . . . . . 2 . . . . . . . Duelist 3 | . . . 1 . . . . . . 2 . . . . Sentry 26 | . . . 7 . . . 6 1 1 7 . 4 . . Specialist 2 | . . . . . . . . . . . . 2 . . Hunter 2 | . . . . . . 1 . . . . . 1 . . Programmer 7 | . . . . . . . . . . . . 7 . . Heavy 1 | . . . . . . . . . . . . 1 . . Behemoth 3 | . . . . . . . . . . 3 . . . . Compactor 2 | . . . . . . . . . . . . . 2 . Assembled 4 | . . 4 . . . . . . . . . . . . Best Kill Streak 13 | . 4 12 13 3 . 1 4 3 4 6 . 8 1 . Combat Bots Only 8 | . 3 6 8 3 . 1 3 3 3 6 . 6 1 . Max Kills in Single Turn 4 | . 1 3 2 1 . 1 2 3 3 4 . 2 1 . Gunslinging 1 | . . . 1 . . . . . . . . 1 . . Exploded 4 | . . 3 2 . . . . 3 3 4 . . . . Melee . | . . . . . . . . . . . . . . . Uniques/NPCs Destroyed . | . . . . . . . . . . . . . . . Combat | -11 -10 -10 -9 -9 -9 -8 -8 -8 -8 -8 -8 -7 -7 -7 -------- Run | Yrd Mat Min Mat Min Exi Min Mat Gar Mat Gar Mat Fac Was Fac Hostile Shots Fired 942 | . 54 18 160 29 . 6 108 12 59 213 . 160 10 113 Missed 309 | . 16 8 52 7 . 1 33 2 19 55 . 61 1 54 Damage Taken 6718 | . 451 208 1492 242 . 77 667 210 542 643 . 903 406 877 Core 1206 | . 87 52 142 23 . . 65 . 48 78 . 43 337 331 Absorbed by Shields 657 | . . . . . . . 219 75 . 122 . 229 12 . Redirected to Shielding 9 | . . . 9 . . . . . . . . . . . Ignored by Resistances 631 | . . . . . . . 107 24 34 189 . 277 . . Regen/Repaired (Parts) 1044 | . . . 274 . . . 11 . 149 . 307 303 . . Core Remaining (%) 66 | 100 . 44 . . . 58 . . . . 65 . . . Volleys Fired 604 | . 53 11 122 14 . 4 122 9 60 96 . 84 29 . Largest 4 | . 2 2 2 2 . 2 2 2 2 2 . 4 4 . Hottest 100 | . 55 50 80 62 . 46 50 50 50 50 . 100 100 . Shots Fired 1378 | . 106 22 236 27 . 8 243 10 115 165 . 336 110 . Gun 1306 | . 105 11 205 14 . 8 243 9 112 153 . 336 110 . Cannon 33 | . 1 . 19 13 . . . . . . . . . . Launcher 39 | . . 11 12 . . . . 1 3 12 . . . . Special . | . . . . . . . . . . . . . . . Kinetic 1308 | . 106 11 193 27 . 8 243 9 112 153 . 336 110 . Thermal . | . . . . . . . . . . . . . . . Explosive 39 | . . 11 12 . . . . 1 3 12 . . . . Electromagnetic 31 | . . . 31 . . . . . . . . . . . Robot Hit Streak 14 | . 7 3 8 7 . 5 13 2 9 14 . 9 14 . Robot Miss Streak 6 | . 5 1 5 2 . 1 6 2 4 4 . 5 4 . Penetration Max . | . . . . . . . . . . . . . . . Secondary Targets 18 | . 3 . 4 . . . 2 . 2 . . 6 1 . Max Gunslinging Chain 1 | . 1 . 1 . . . 1 . 1 . . 1 1 . Shots Hit Robots 817 | . 62 8 142 18 . 6 142 2 65 124 . 172 76 . Core Hits 393 | . 34 19 80 7 . 3 56 6 34 59 . 78 17 . Critical Kills 2 | . . . . . . . 1 . . . . 1 . . Critical Parts Destroyed . | . . . . . . . . . . . . . . . Critical Strikes 4 | . . . . . . . 1 . . . . 1 2 . Destroy 4 | . . . . . . . 1 . . . . 1 2 . Melee Attacks 26 | . . . . . . . 2 8 2 12 . 2 . . Impact 26 | . . . . . . . 2 8 2 12 . 2 . . Slashing . | . . . . . . . . . . . . . . . Piercing . | . . . . . . . . . . . . . . . Sneak Attacks . | . . . . . . . . . . . . . . . Combat Hostiles . | . . . . . . . . . . . . . . . Follow-up Attacks . | . . . . . . . . . . . . . . . Damage Inflicted 17885 | . 871 810 3309 324 . 71 2478 266 1617 3328 20 3296 1459 36 Guns 13392 | . 839 8 2012 187 . 71 2392 51 1148 1982 . 3243 1459 . Cannons 463 | . 15 . 315 133 . . . . . . . . . . Explosions 3685 | . . 793 910 . . . . 215 421 1346 . . . . Melee . | . . . . . . . . . . . . . . . Ramming 345 | . 17 9 72 4 . . 86 . 48 . 20 53 . 36 Kinetic 13478 | . 854 8 1950 320 . 71 2392 51 1148 1982 . 3243 1459 . Thermal 85 | . . . 85 . . . . . . . . . . . Explosive 3600 | . . 793 825 . . . . 215 421 1346 . . . . Electromagnetic 377 | . . . 377 . . . . . . . . . . . Impact . | . . . . . . . . . . . . . . . Slashing . | . . . . . . . . . . . . . . . Piercing . | . . . . . . . . . . . . . . . Highest Corruption 21 | . . . 3 3 3 3 . . . . . 2 21 21 Average Corruption 4 | . . . 2 3 3 3 . . . . . 1 13 21 Corruption Purged 2 | . . . . . . . . . . . . 2 . . Corruption Blocked . | . . . . . . . . . . . . . . . Effects 121 | . . . 7 30 13 7 . . . . . 17 21 26 Message Errors 25 | . . . 4 6 3 . . . . . . 4 3 5 Matter Fused 21 | . . . . 7 3 1 . . . . . 5 . 5 Heat Flow Errors 20 | . . . . 6 3 2 . . . . . 2 4 3 Energy Discharges 9 | . . . . 5 1 . . . . . . 2 . 1 Parts Rejected 3 | . . . . . . . . . . . . 1 . 2 Data Loss (minor) 15 | . . . 2 1 2 4 . . . . . 2 4 . Data Loss (major) 7 | . . . . 4 1 . . . . . . 1 . 1 Misfires 1 | . . . 1 . . . . . . . . . . . Alerts 2 | . . . . . . . . . . . . . . 2 Misdirections 15 | . . . . . . . . . . . . . 8 7 Weapon Failures 3 | . . . . 1 . . . . . . . . 2 . Overload Shots . | . . . . . . . . . . . . . . . Overflow Damage 138 | . . . 35 . . . 1 . 93 9 . . . . Projectiles 5 | . . . 5 . . . . . . . . . . . Explosions 112 | . . . 30 . . . . . 73 9 . . . . Melee 21 | . . . . . . . 1 . 20 . . . . . Knockbacks 9 | . 1 . 3 1 . . 1 . 1 . . 2 . . Impact 6 | . . . 2 . . . 1 . 1 . . 2 . . Kinetic 3 | . 1 . 1 1 . . . . . . . . . . Secondary . | . . . . . . . . . . . . . . . Self-Inflicted Damage 261 | . . 71 158 . . . . . 16 . . . . 16 Shots 8 | . . 3 4 . . . . . 1 . . . . . Rammed 28 | . 9 1 8 1 . . . . . . . . . 9 Targets Rammed 49 | . 10 2 9 1 . . 8 . 4 . 1 5 . 9 Kicked 18 | . . . . . . . 8 . 4 . 1 5 . . Crushed 3 | . 1 1 1 . . . . . . . . . . . Highest Temperature 302 | . 20 43 214 276 240 232 4 . 7 5 . 302 223 225 Average Temperature 79 | . 7 19 67 87 97 85 4 . 7 5 . 81 124 102 Received Heat Transfer 2061 | . 210 75 498 96 . . 308 45 342 213 . 85 . 189 Effects 1 | . . . . 1 . . . . . . . . . . Energy Bleed 1 | . . . . 1 . . . . . . . . . . Siege Activations . | . . . . . . . . . . . . . . . Robots Corrupted . | . . . . . . . . . . . . . . . Combat Hostiles . | . . . . . . . . . . . . . . . Parts Fried 3 | . . . 1 . . . 2 . . . . . . . Impact Corruptions 2 | . . . . . . . 1 . 1 . . . . . Robots Melted . | . . . . . . . . . . . . . . . Combat Hostiles . | . . . . . . . . . . . . . . . Parts Melted . | . . . . . . . . . . . . . . . Heat Transferred 100 | . . . 100 . . . . . . . . . . . Parts Sabotaged . | . . . . . . . . . . . . . . . Parts Stolen . | . . . . . . . . . . . . . . . Parts Stripped . | . . . . . . . . . . . . . . . Power Chain Reactions 2 | . . . 2 . . . . . . . . . . . Alert | -11 -10 -10 -9 -9 -9 -8 -8 -8 -8 -8 -8 -7 -7 -7 ------- Run | Yrd Mat Min Mat Min Exi Min Mat Gar Mat Gar Mat Fac Was Fac Peak Influence 1031 | . 308 303 722 322 . 30 132 257 292 1031 503 536 180 437 Initial 502 | . . 31 117 222 . . 11 27 124 44 502 137 180 87 Average 234 | . 115 198 475 123 . 18 46 51 136 581 477 225 140 257 Maximum Alert Level 3 | . 1 1 3 1 . . . 1 1 3 2 2 . 2 Low Security (%) 62 | 100 85 38 16 72 . 100 100 99 68 19 . 63 100 42 Level 1 13 | . 14 61 14 27 . . . . 31 14 12 17 . 37 Level 2 17 | . . . 57 . . . . . . 22 87 18 . 19 Level 3 6 | . . . 11 . . . . . . 44 . . . . Level 4 . | . . . . . . . . . . . . . . . Level 5 . | . . . . . . . . . . . . . . . High Security . | . . . . . . . . . . . . . . . Max Security . | . . . . . . . . . . . . . . . Squads Dispatched 29 | . 3 . 7 1 . . . . 3 . 1 10 . 4 Investigation 8 | . 3 . 2 1 . . . . 1 . . 1 . . Extermination 6 | . . . . . . . . . . . . 5 . 1 Reinforcement 13 | . . . 4 . . . . . 2 . 1 3 . 3 Assault 2 | . . . 1 . . . . . . . . 1 . . Garrison . | . . . . . . . . . . . . . . . Intercept . | . . . . . . . . . . . . . . . Searches Triggered . | . . . . . . . . . . . . . . . Construction Impeded . | . . . . . . . . . . . . . . . Haulers Reinforced . | . . . . . . . . . . . . . . . Active Scanning Responses . | . . . . . . . . . . . . . . . Cargo Convoy Interrupts . | . . . . . . . . . . . . . . . Stealth | -11 -10 -10 -9 -9 -9 -8 -8 -8 -8 -8 -8 -7 -7 -7 --------- Run | Yrd Mat Min Mat Min Exi Min Mat Gar Mat Gar Mat Fac Was Fac Distress Signals 20 | . 1 . 3 . . . 3 . 2 4 . 4 . 3 Communications Jammed . | . . . . . . . . . . . . . . . Distress Signals . | . . . . . . . . . . . . . . . Times Spotted 272 | . 23 11 51 7 . 1 44 10 27 25 1 36 6 30 Peak Tracking Total 11 | . 4 3 7 3 . 1 6 3 5 8 1 5 4 11 Tactical Retreats 16 | . . . 1 1 . . . . 1 3 . 2 . 8 Traps | -11 -10 -10 -9 -9 -9 -8 -8 -8 -8 -8 -8 -7 -7 -7 ------- Run | Yrd Mat Min Mat Min Exi Min Mat Gar Mat Gar Mat Fac Was Fac Traps Triggered 13 | . 2 . 3 . . . . . . 6 . 2 . . Indirectly . | . . . . . . . . . . . . . . . Trap Hack Attempts . | . . . . . . . . . . . . . . . Triggered . | . . . . . . . . . . . . . . . Disarmed . | . . . . . . . . . . . . . . . Reprogrammed . | . . . . . . . . . . . . . . . Reused . | . . . . . . . . . . . . . . . Traps Extracted . | . . . . . . . . . . . . . . . Installed . | . . . . . . . . . . . . . . . Triggered . | . . . . . . . . . . . . . . . Machines | -11 -10 -10 -9 -9 -9 -8 -8 -8 -8 -8 -8 -7 -7 -7 ---------- Run | Yrd Mat Min Mat Min Exi Min Mat Gar Mat Gar Mat Fac Was Fac Machines Disabled 11 | . 1 . 4 1 . . . 2 . 3 . . . . Max in Single Turn 1 | . 1 . 1 1 . . . 1 . 1 . . . . Garrison Access 1 | . . . . . . . . . . . . 1 . . Garrison Relay 1 | . . . . . . . . . . 1 . . . . Machines Repaired . | . . . . . . . . . . . . . . . Machines Dismantled . | . . . . . . . . . . . . . . . Machines Sabotaged . | . . . . . . . . . . . . . . . Overloaded Fab Kills . | . . . . . . . . . . . . . . . Hacking | -11 -10 -10 -9 -9 -9 -8 -8 -8 -8 -8 -8 -7 -7 -7 --------- Run | Yrd Mat Min Mat Min Exi Min Mat Gar Mat Gar Mat Fac Was Fac Machines Accessed 53 | . 9 . 9 2 1 . 11 3 6 2 2 8 . . Terminals 36 | . 7 . 6 . . . 8 3 4 2 1 5 . . Fabricators 1 | . . . . . . . . . . . . 1 . . Repair Stations 7 | . . . 2 . . . 2 . 1 . 1 1 . . Recycling Units 3 | . 2 . 1 . . . . . . . . . . . Scanalyzers . | . . . . . . . . . . . . . . . Garrison Access 3 | . . . . . . . 1 . 1 . . 1 . . Total Hacks 150 | . 24 . 28 2 1 . 28 7 20 4 16 20 . . Successful 86 | . 13 . 16 2 1 . 17 3 10 1 12 11 . . Failed 63 | . 10 . 12 . . . 11 4 10 3 4 9 . . Catastrophic 12 | . 2 . . . . . 5 . 3 1 . 1 . . Database Lockouts 1 | . 1 . . . . . . . . . . . . . Manual 69 | . 16 . 16 . 1 . 15 1 13 1 4 2 . . Terminals 107 | . 22 . 21 . . . 21 7 15 4 6 11 . . Fabricators 2 | . . . . . . . . . . . . 2 . . Repair Stations 28 | . . . 6 . . . 5 . 3 . 10 4 . . Recycling Units 3 | . 2 . 1 . . . . . . . . . . . Scanalyzers . | . . . . . . . . . . . . . . . Garrison Access 7 | . . . . . . . 2 . 2 . . 3 . . Terminal Hacks 41 | . 10 . 8 2 1 . 8 3 5 1 1 2 . . Robot Schematic 1 | . 1 . . . . . . . . . . . . . Robot Analysis 4 | . 2 . 1 . . . 1 . . . . . . . Prototype ID Bank 11 | . 4 . 4 . . . 1 . 2 . . . . . Open Door 2 | . . . . 2 . . . . . . . . . . Level Access Points 1 | . . . . . . . . . . . . 1 . . Emergency Access Points 1 | . . . . . . . . . . 1 . . . . Terminal Index 1 | . . . . . . . 1 . . . . . . . Alert Level 6 | . 1 . 1 . . . 2 . 1 . . 1 . . Unreport Threat 3 | . . . 1 . . . 1 . 1 . . . . . Locate Traps 1 | . . . . . . . 1 . . . . . . . Dispatch Records 1 | . 1 . . . . . . . . . . . . . Recall Investigation 1 | . . . 1 . . . . . . . . . . . Hauler Manifests 3 | . . . . . . . 1 . 1 . 1 . . . Zone Layout 1 | . 1 . . . . . . . . . . . . . Garrison Registry 1 | . . . . . . . . 1 . . . . . . Patrol Navigation 1 | . . . . . . . . 1 . . . . . . Security Stations 1 | . . . . . . . . 1 . . . . . . Derelict Proto ID Bank 1 | . . . . . 1 . . . . . . . . . Fabricator Hacks 2 | . . . . . . . . . . . . 2 . . Load Schematic 1 | . . . . . . . . . . . . 1 . . Build 1 | . . . . . . . . . . . . 1 . . Repair Station Hacks 25 | . . . 6 . . . 3 . 2 . 10 4 . . Scan Component 13 | . . . 3 . . . 2 . 1 . 5 2 . . Repair 12 | . . . 3 . . . 1 . 1 . 5 2 . . Recycling Unit Hacks . | . . . . . . . . . . . . . . . Scanalyzer . | . . . . . . . . . . . . . . . Garrison Access Hacks 3 | . . . . . . . 1 . 1 . . 1 . . Unlock Access 2 | . . . . . . . 1 . 1 . . . . . Seal Access 1 | . . . . . . . . . . . . 1 . . Unauthorized Hacks 15 | . 3 . 2 . . . 5 . 2 . 1 2 . . Terminals 12 | . 1 . 1 . . . 5 . 2 . 1 2 . . Assimilate 4 | . . . . . . . 3 . . . . 1 . . Botnet 7 | . 1 . 1 . . . 1 . 2 . 1 1 . . Operators 1 | . . . . . . . 1 . . . . . . . Fabricators . | . . . . . . . . . . . . . . . Repair Stations . | . . . . . . . . . . . . . . . Recycling Units 3 | . 2 . 1 . . . . . . . . . . . Tunnel 3 | . 2 . 1 . . . . . . . . . . . Scanalyzers . | . . . . . . . . . . . . . . . Garrison Access . | . . . . . . . . . . . . . . . Data Cores Recovered 2 | . . . . . . . . . . . . 2 . . Used . | . . . . . . . . . . . . . . . Hacking Detections 44 | . 6 . 8 . . . 10 3 6 2 2 7 . . Full Trace Events 5 | . 1 . . . . . . . 1 1 1 1 . . Feedback Events . | . . . . . . . . . . . . . . . Feedback Blocked . | . . . . . . . . . . . . . . . Robot Schematics Acquired 1 | . 1 . . . . . . . . . . . . . Robots Built 1 | . . . . . . . . . . . . 1 . . Authchips . | . . . . . . . . . . . . . . . Time 81 | . . . . . . . . . . . . 81 . . Total Robot Build Rating 1 | . . . . . . . . . . . . 1 . . Part Schematics Acquired . | . . . . . . . . . . . . . . . Parts Built . | . . . . . . . . . . . . . . . Authchips . | . . . . . . . . . . . . . . . Time . | . . . . . . . . . . . . . . . Total Part Build Rating . | . . . . . . . . . . . . . . . Parts Repaired 12 | . . . 3 . . . 1 . 1 . 5 2 . . Time 554 | . . . 78 . . . 136 . 44 . 236 60 . . Parts Recycled . | . . . . . . . . . . . . . . . Recycled Matter . | . . . . . . . . . . . . . . . Retrieved Matter . | . . . . . . . . . . . . . . . Retrieved Components . | . . . . . . . . . . . . . . . Parts Scanalyzed . | . . . . . . . . . . . . . . . Part Schematics Acquired . | . . . . . . . . . . . . . . . Parts Damaged . | . . . . . . . . . . . . . . . Bothacking | -11 -10 -10 -9 -9 -9 -8 -8 -8 -8 -8 -8 -7 -7 -7 ------------ Run | Yrd Mat Min Mat Min Exi Min Mat Gar Mat Gar Mat Fac Was Fac Used RIF Installer . | . . . . . . . . . . . . . . . Robots Hacked . | . . . . . . . . . . . . . . . Non-combat . | . . . . . . . . . . . . . . . Combat . | . . . . . . . . . . . . . . . Robot Hacks Applied . | . . . . . . . . . . . . . . . Relay Couplers Released 4 | . . . . . . . . . . 4 . . . . Machine Destruction 4 | . . . . . . . . . . 4 . . . . Fabnet Peak Effective % . | . . . . . . . . . . . . . . . Robots Rewired . | . . . . . . . . . . . . . . . Allies Hacked . | . . . . . . . . . . . . . . . Hacks Repelled . | . . . . . . . . . . . . . . . Allies | -11 -10 -10 -9 -9 -9 -8 -8 -8 -8 -8 -8 -7 -7 -7 -------- Run | Yrd Mat Min Mat Min Exi Min Mat Gar Mat Gar Mat Fac Was Fac Total Allies 6 | . . . . 1 . . 1 1 . . . 2 1 . Largest Group 2 | . . . . 1 . . 1 2 1 . . 2 1 . Highest-Rated Group 41 | . . . . 31 . . 10 41 10 . . 40 31 . Highest-Rated Ally 31 | . . . . 31 . . 10 31 10 . . 26 31 . Total Orders 25 | . . . . . . . 2 19 1 . . 3 . . STAY 7 | . . . . . . . 1 4 1 . . 1 . . FOLLOW 6 | . . . . . . . 1 4 . . . 1 . . AID 1 | . . . . . . . . . . . . 1 . . EXPLORE 11 | . . . . . . . . 11 . . . . . . Ally Attacks 38 | . . . . . . . . 18 . . . . 20 . Total Damage 379 | . . . . . . . . 40 . . . . 339 . Kills 1 | . . . . . . . . 1 . . . . . . Allies Corrupted . | . . . . . . . . . . . . . . . Allies Melted . | . . . . . . . . . . . . . . . Intel | -11 -10 -10 -9 -9 -9 -8 -8 -8 -8 -8 -8 -7 -7 -7 ------- Run | Yrd Mat Min Mat Min Exi Min Mat Gar Mat Gar Mat Fac Was Fac Robot Analysis Total 4 | . 2 . 1 . . . 1 . . . . . . . Derelict Logs Recovered 1 | . . . . 1 . . . . . . . . . . Drone Launches 16 | . . . . . . . . 16 . . . . . . Drone Recoveries . | . . . . . . . . . . . . . . . Exploration | -11 -10 -10 -9 -9 -9 -8 -8 -8 -8 -8 -8 -7 -7 -7 ------------- Run | Yrd Mat Min Mat Min Exi Min Mat Gar Mat Gar Mat Fac Was Fac Turns Passed 18307 | 82 1284 130 2990 1478 576 214 3202 1396 1536 1713 456 2556 295 399 Spaces Moved 7715 | 48 673 59 1185 476 227 115 1131 530 490 576 120 909 409 767 Core 1158 | 3 . . . . . . . . . . . . 388 767 Treads 2553 | 45 673 59 1185 476 115 . . . . . . . . . Legs 4004 | . . . . . 112 115 1131 530 490 576 120 909 21 . Wheels . | . . . . . . . . . . . . . . . Hover . | . . . . . . . . . . . . . . . Flight . | . . . . . . . . . . . . . . . Fastest Speed 50 | 50 160 160 160 250 170 170 170 250 250 170 170 170 50 50 Average Speed 201 | 153 160 160 205 296 251 170 241 250 250 246 175 239 55 50 Slowest Speed 330 | 160 160 160 250 330 330 170 250 250 250 250 250 250 170 50 Overloaded Moves 3 | . . . . . . . . . . . . . 3 . Propulsion Burnouts . | . . . . . . . . . . . . . . . Robots Hopped . | . . . . . . . . . . . . . . . Cave-ins Triggered . | . . . . . . . . . . . . . . . Exploration Rate (%) 56 | 6 99 21 91 74 61 47 69 79 48 77 20 34 86 31 Regions Visited 14 Branch Regions 4 Pre-discovered Areas 3 | . 2 . 1 . . . . . . . . . . . Known Exits Taken 2 | . . . . . . . 1 . 1 . . . . . Unknown Exits Taken 8 | 1 1 1 1 1 1 1 . . . . 1 . . . Scrap Searched 2 | . . 1 . 1 . . . . . . . . . . Spaces Dug 47 | . . . 10 . . . 2 20 14 . . 1 . . Terrain Destroyed 403 | . . 119 110 1 . . 2 20 40 110 . 1 . . Melee 5 | . . . . . . . 2 . 2 . . 1 . . Projectile 1 | . . . . 1 . . . . . . . . . . AOE 397 | . . 119 110 . . . . 20 38 110 . . . . Terrain Rammed . | . . . . . . . . . . . . . . . Walls Destroyed . | . . . . . . . . . . . . . . . Machines Disabled . | . . . . . . . . . . . . . . . Actions | -11 -10 -10 -9 -9 -9 -8 -8 -8 -8 -8 -8 -7 -7 -7 --------- Run | Yrd Mat Min Mat Min Exi Min Mat Gar Mat Gar Mat Fac Was Fac Total 9520 | 54 768 73 1506 515 233 126 1399 581 720 745 363 1197 459 781 Wait 785 | . 13 . 108 7 . 6 65 29 143 6 236 164 8 . Move 7701 | 47 672 58 1184 475 226 114 1130 529 490 573 119 909 408 767 Hop . | . . . . . . . . . . . . . . . Pick Up 75 | 1 7 . 18 8 . . 21 . 5 3 2 7 3 . Fast Attach 42 | 6 3 . 9 1 2 . 5 . 1 3 3 5 1 3 Attach 28 | . 1 . 4 2 . 2 5 . 2 4 1 4 2 1 Detach 20 | . 1 . 2 3 3 . 3 . . 5 . 3 . . Swap 82 | . 5 2 22 3 . . 10 6 7 16 1 9 1 . Drop 82 | . 3 . 28 1 2 . 28 . 6 2 . 5 7 . Fire 604 | . 53 11 122 14 . 4 122 9 60 96 . 84 29 . Melee 26 | . . . . . . . 2 8 2 12 . 2 . . Ram 10 | . . . . . . . . . . . . . . 10 Kick 18 | . . . . . . . 8 . 4 . 1 5 . . Crush 22 | . 10 2 9 1 . . . . . . . . . . Escape Stasis 25 | . . . . . . . . . . 25 . . . . Rewire . | . . . . . . . . . . . . . . . Trap . | . . . . . . . . . . . . . . . Miscellaneous . | . . . . . . . . . . . . . . . Route ------- -11/Scrapyard -10/Materials (discovered 5 exits: *Mat x3 / [*Min x2]) -10/Mines -9/Materials (discovered 5 exits: *Mat x2 / *Min x2 / [*Sto]) -9/Mines (discovered 2 exits: *Mat / *Exi) -9/Exiles -8/Mines -8/Materials (discovered 3 exits: *Fac x2 / Gar) -8/Garrison (discovered 4 exits: *Mat x4) -8/Materials (discovered 2 exits: *Fac / Gar) -8/Garrison (discovered 3 exits: *Mat x3) -8/Materials -7/Factory (discovered 4 exits: *Fac x4) -7/Waste -7/Factory History --------- Turn | Location | Event 6 | -11/Scrapyard | Discovered new exit (range 14) 83 | -11/Scrapyard | Entered Materials 312 | -10/Materials | Build established: Mutant 366 | -10/Materials | Discovered new exit (range 4) 515 | -10/Materials | Discovered new exit (range 4) 635 | -10/Materials | Central database locked down 903 | -10/Materials | Discovered new exit (range 13) 965 | -10/Materials | Discovered new exit (range 16) 1275 | -10/Materials | Discovered new exit (range 16) 1367 | -10/Materials | Entered Mines 1368 | -10/Mines | Assembled infested the area 1471 | -10/Mines | Discovered new exit (range 9) 1477 | -10/Mines | Core integrity fell below 50% 1497 | -10/Mines | Entered Materials 1497 | -9/Materials | Evolved 2 slots: Utility x2 1941 | -9/Materials | Repaired Lgt. Treads 1968 | -9/Materials | Repaired Lgt. Treads 2022 | -9/Materials | Discovered new exit (range 12) 2197 | -9/Materials | Destroyed 8 combat bots 2295 | -9/Materials | Discovered new exit (range 12) 2600 | -9/Materials | Discovered new exit (range 16) 2828 | -9/Materials | Repaired Lgt. Armor Plating 2987 | -9/Materials | Discovered new exit (range 10) 3097 | -9/Materials | First assault squad dispatched 3156 | -9/Materials | Build established: Scavenger-Mutant 3797 | -9/Materials | Discovered new exit (range 11) 4249 | -9/Materials | Build established: Mutant 4487 | -9/Materials | Entered Mines 4488 | -9/Mines | Met a Derelict bent on vengeance 4490 | -9/Mines | Received a Mining Laser from a helpful Derelict 4986 | -9/Mines | Discovered new exit (range 12) 4997 | -9/Mines | Met a Derelict shopkeep closing up shop 5142 | -9/Mines | Deemed a non-threat by the Exiles lab entrance 5176 | -9/Mines | Received a Rocket Launcher from a helpful Derelict 5233 | -9/Mines | Found the Drone Emporium 5246 | -9/Mines | Found Prototype Device 5246 | -9/Mines | Identified Bomb Drone Bay 5707 | -9/Mines | Found a damaged Exp. Sensor Array with a note attached 5714 | -9/Mines | Found Prototype Device 5715 | -9/Mines | Identified Exp. Sensor Array 5952 | -9/Mines | Discovered new exit (range 5) 5965 | -9/Mines | Entered Exiles 6049 | -9/Exiles | Met 8R-AWN 6102 | -9/Exiles | Met EX-HEX 6191 | -9/Exiles | Met EX-BIN 6237 | -9/Exiles | Aligned with FarCom system 6240 | -9/Exiles | Given EX-Vault access code 6316 | -9/Exiles | Opened EX-Vault 6347 | -9/Exiles | Found Potential Leg 6352 | -9/Exiles | Found Potential Leg 6396 | -9/Exiles | Warned to stay clear of 0b10 Research branches 6444 | -9/Exiles | Met EX-DEC 6522 | -9/Exiles | Discovered new exit (range 14) 6541 | -9/Exiles | Left Exiles lab with Potential Leg 6541 | -9/Exiles | Entered Mines 6738 | -8/Mines | Discovered new exit (range 9) 6755 | -8/Mines | Entered Materials 6755 | -8/Materials | Evolved 2 slots: Utility x2 7202 | -8/Materials | Identified exit to Garrison 7769 | -8/Materials | Discovered new exit (range 15) 8650 | -8/Materials | Discovered new exit (range 7) 9389 | -8/Materials | Repaired Broken Exp. Sensor Array? 9957 | -8/Materials | Entered Garrison 9957 | -8/Garrison | Accompanied by 1 ally 10020 | -8/Garrison | Triggered checkpoint 10209 | -8/Garrison | Triggered checkpoint 10211 | -8/Garrison | Triggered checkpoint 10213 | -8/Garrison | Triggered checkpoint 10281 | -8/Garrison | Triggered checkpoint 10340 | -8/Garrison | Lost 3 allies 10533 | -8/Garrison | Triggered checkpoint 10558 | -8/Garrison | Rescued a captive Derelict 10641 | -8/Garrison | Discovered new exit (range 33) 10657 | -8/Garrison | Discovered new exit (range 79) 10659 | -8/Garrison | Discovered new exit (range 77) 10725 | -8/Garrison | Discovered new exit (range 56) 10867 | -8/Garrison | Learned Materials security intel 10896 | -8/Garrison | Triggered checkpoint 10930 | -8/Garrison | Lost 4 allies 11202 | -8/Garrison | Discovered new exit (range 65) 11202 | -8/Garrison | Discovered new exit (range 42) 11202 | -8/Garrison | Discovered new exit (range 20) 11202 | -8/Garrison | Discovered new exit (range 42) 11331 | -8/Garrison | Triggered checkpoint 11353 | -8/Garrison | Entered Materials 11353 | -8/Materials | Accompanied by 1 ally 12035 | -8/Materials | Repaired Med. Reactive Plating 12354 | -8/Materials | Discovered new exit (range 16) 12889 | -8/Materials | Identified exit to Garrison 12889 | -8/Materials | Entered Garrison 13498 | -8/Garrison | Spotted B-75 Beast 13565 | -8/Garrison | Destroyed B-75 Beast 13585 | -8/Garrison | Spotted B-75 Beast 13632 | -8/Garrison | Destroyed B-75 Beast 13637 | -8/Garrison | Triggered checkpoint 13763 | -8/Garrison | Discovered new exit (range 5) 13811 | -8/Garrison | Triggered checkpoint 13994 | -8/Garrison | Attempted to access garrison exit controls, blocked by remote lockdown 14177 | -8/Garrison | Spotted B-75 Beast 14238 | -8/Garrison | Destroyed B-75 Beast 14328 | -8/Garrison | Discovered new exit (range 10) 14353 | -8/Garrison | Attempted to access garrison exit controls, blocked by remote lockdown 14491 | -8/Garrison | Triggered checkpoint 14583 | -8/Garrison | Discovered new exit (range 12) 14602 | -8/Garrison | Entered Materials 14669 | -8/Materials | Repaired Imp. Cooling System 14714 | -8/Materials | Repaired Med. Reactive Plating 14776 | -8/Materials | Repaired Enh. Autogun 14815 | -8/Materials | Repaired Lrn. Tractor Beam 14866 | -8/Materials | Repaired Remote Shield 15026 | -8/Materials | Discovered new exit (range 8) 15058 | -8/Materials | Entered Factory 15058 | -7/Factory | Evolved 2 slots: Weapon x2 15294 | -7/Factory | Discovered new exit (range 6) 15376 | -7/Factory | Build established: Tank 16898 | -7/Factory | Identified exit to Factory 17144 | -7/Factory | Fabricated M-13 Machinist? 17434 | -7/Factory | Repaired Enh. Autogun 17458 | -7/Factory | First assault squad dispatched 17466 | -7/Factory | Repaired Enh. Autogun 17614 | -7/Factory | Sucked down chute 17614 | -7/Factory | Entered Waste 17615 | -7/Waste | Met a frightened Derelict 17629 | -7/Waste | EMP discharged 17630 | -7/Waste | Spotted C-40 Crusher 17645 | -7/Waste | Destroyed C-40 Crusher 17673 | -7/Waste | Spotted C-40 Crusher 17687 | -7/Waste | Spotted C-40 Crusher 17687 | -7/Waste | Destroyed C-40 Crusher 17691 | -7/Waste | Spotted C-40 Crusher 17703 | -7/Waste | Crushed by Compactor (1 part destroyed, 1 dropped) 17706 | -7/Waste | Crushed by Compactor (1 part destroyed, 2 dropped) 17711 | -7/Waste | Crushed by Compactor (1 part destroyed, 2 dropped) 17712 | -7/Waste | Crushed by Compactor (1 part destroyed, 1 dropped) 17714 | -7/Waste | Crushed by Compactor (1 part destroyed, 1 dropped) 17729 | -7/Waste | EMP discharged 17729 | -7/Waste | System corruption reached 10% 17730 | -7/Waste | Spotted C-40 Crusher 17745 | -7/Waste | Lost 5 parts (2n3u) 17774 | -7/Waste | Spotted C-40 Crusher 17782 | -7/Waste | Discovered new exit (range 15) 17821 | -7/Waste | Core integrity fell below 50% 17829 | -7/Waste | EMP discharged 17909 | -7/Waste | Entered Factory 18005 | -7/Factory | Build established: Mutant 18281 | -7/Factory | Core integrity fell below 20% 18308 | -7/Factory | Destroyed by S-27 Virus with Autogun Last Messages --------------- 18173_ System corrupted: Matter fused (-8). 18176_ W-25 Informer sends out distress signal. 18179_ Slammed into W-25 Informer. 18211_ T-07 Excavator is excavating. 18213_ System corrupted: Matter fused (-8). 18215_ T-07 Excavator is excavating. 18228_ Acquired 83 matter. 18229_ O-16 Technician: "IFF HANDSHAKE FAILED. SECURING TERMINAL." 18230_ |C6J5DSDOPC4YM5 TS7V>W#P3, 18239_ ALERT: Hostiles spotted, dispatching reinforcements to Terminal F014. 18243_ K-01 Serf cleans the Matter Pump. 18247_ TN:NNNQ7EW:DWBWOARI HINN 18247_ K-01 Serf cleans the Matter Pump. 18262_ Acquired 90 matter. 18268_ System corrupted: Energy discharge (-39). 18273_ K-01 Serf collects debris. 18285_ System corrupted: Hvy. Treads rejected. 18290_ Slammed into W-25 Informer. 18301_ System corrupted: Matter fused (-10). Map ----- +----------------------------------------------------+ | ??????????????? ?# """??# #???????? | | ??????????????? ?# "????# #???????? | | ??????????????? ????????# #???????? | | ????????#+##### ????????# #???????? | | ???????# # #???????# #???????# | | ???????# # #???#####/#####???# | | ???????# """ !# #???# #???# | | ???????# "Y # #???# """ #???# | | ???????? """ # #???# """"" #???# | | ?????????? # #???# """"" #???# | | ????????#+##+## ##### #???# | | ????????# p + "Y" #???# | | ????????# ##+##### """ #???# | | ????????# s# ??# #???# | | ????????# s + ]= ############???# | | ????????# #### == #??????????????? | | ????????#s#??# == #??????????????? | | ??????###s####! #??????????????? | | ??????# ## #??????????????? | | ??????# ##! = #??????????????? | | ??????# ########??????????????? | | ??????# #?????????????????????? | | ??????# ! #?????????????????????? | | ??????#### ##?????????????????????? | | ?????????# #??????????????????????? | | ?????????#@#??????????????????????? | | ?????????# #??????????????????????? | | ?????????# #??????????????????????? | | ?????????# #??????????????????????? | | ????????? ??????????????????????? | | ?????????###??????????????????????? | | ??????????????????????????????????? | | ??????????????????????????????????? | | ???????????????H??????????????????? | | ??????????????????????????????????? | | ??????????????????????????????????? | | ??????????????????????????????????? | | ??????????????????????????????????? | | ??????????????????????????????????? | | ??????????????????????????????????? | | ??????????????????????????????????? | | ??????????????????????????????????? | | ??????????????????????????????????? | | ??????????????????????????????????? | | ??????????????????????????????????? | | ??????????????????????????????????? | | ??????????????????????????????????? | | ??????????????????????????????????? | | ??????????????????????????????????? | | ??????????????????????????????????? | +----------------------------------------------------+ Best States ------------- Heat Dissipation 61 Coolant Potential 65 Energy Generation 21 Energy Capacity 325 Matter Stores 300 Matter Capacity 300 Sight Range 16 Terrain Scan Density 10 Armor Coverage 675 Resistance: KI 30 Utility Shielding 33 Weapon Cycling 15 Evasion (%) 50 Core Analysis 6 Recoil Reduction 2 Kinecelleration 30 Offensive Hacking 10 Defensive Hacking 10 Item Schematics ----------------- None Robot Schematics ------------------ M-13 Machinist | -10/Materials | Hacked Fabricated ------------ M-13 Machinist | x1 | -7/Factory Alien Tech Used ----------------- None Achievements -------------- None Challenges ------------ None Game ------ Seed BarrageScatterPod Manual? 0 Play Time 01:25:02 Cumulative 385.3 hours Start 2024.05.24 @ 17:13:17 End 2024.05.25 @ 08:51:45 Sessions 5 Manual Loads 0 Difficulty Rogue Special Mode None Game No. 243 Rogue 243 Adventurer 0 Explorer 0 Win Type - Total 24 Types 16/2/3/1/1/0/0/1/0 Lore% 85 Gallery% 87 Achievement% 81 Wizard Run 0 Options --------- Layout 0 ASCII 0 Keyboard 1 Movement Numpad Keybinds 0 Fullscreen 2 Font 18/SmallcapsGlow Map View 76x50 Zoom Use 0% Tactical HUD 1 Map Filters NONE Filters NONE Steam 1 RUN: 9ace462e-27e6-4201-96cf-ddf45b500559